bitfinex-derivatives/quotes_ETHF0:USTF0_20250405
["timestamp","ask_amount","ask_price","bid_price","bid_amount"]
[1743827734639,3.485,1814.2,1814.1,3.3650333]
[1743827734939,3.485,1814.2,1814.1,3.3650359]
[1743827737139,6.6928,1814.4,1814.3,1.10277]
[1743827737535,6.6928,1814.4,1814.3,1.82577]
[1743827737941,6.6928,1814.4,1814.3,0.723]
[1743827738434,7.79551,1814.4,1814.3,2.2619]
[1743827740345,3.2078,1814.4,1814.3,3.36467]
[1743827741139,3.2078,1814.4,1814.3,4.13650192]
[1743827741436,1.10266,1814.5,1814.3,4.13644814]
[1743827741743,1.10266,1814.5,1814.4,2.1706]
[1743827742142,1.10266,1814.5,1814.4,3.27331]
[1743827742541,7.79543,1814.6,1814.4,3.27331]
[1743827742743,7.79543,1814.6,1814.5,2.2367]
[1743827742962,3.2078,1814.6,1814.5,3.33935]
[1743827743144,3.2078,1814.6,1814.5,4.11075029]
[1743827744346,3.2078,1814.6,1814.5,4.11017442]
[1743827745244,3.2078,1814.6,1814.5,6.61017442]
[1743827746245,3.2078,1814.6,1814.5,4.11017442]
[1743827747341,3.2078,1814.6,1814.5,1.10265]
[1743827747840,5.3321,1814.6,1814.5,1.10265]
[1743827748343,5.3321,1814.6,1814.3,4.31053]
[1743827748344,1.10265,1814.5,1814.3,4.31053]
[1743827748543,2.1342,1814.4,1814.3,4.31053]
[1743827748743,2.1342,1814.4,1814.3,5.07995065]
[1743827751653,2.1342,1814.4,1814.3,5.07980806]
[1743827753049,2.1342,1814.4,1814.3,4.31053]
[1743827754655,2.1342,1814.4,1814.3,1.10273]
[1743827759169,3.23691,1814.4,1814.2,5.82158]
[1743827759367,2.2265,1814.3,1814.2,5.82158]
[1743827759571,2.2265,1814.3,1814.2,6.59140667]
[1743827760775,2.2265,1814.3,1814.2,1.10278]
[1743827762374,2.2265,1814.3,1814.2,1.87279251]
[1743827762673,2.2265,1814.3,1814.2,1.10278]
[1743827763070,2.2265,1814.3,1814.2,3.27989368]
[1743827764274,2.2265,1814.3,1814.2,3.27988994]
[1743827766676,4.31043,1814.6,1814.2,2.17710994]
[1743827766867,3.484,1814.5,1814.4,1.10268]
[1743827767067,4.58665,1814.5,1814.4,1.4823]
[1743827768176,6.08455,1814.5,1814.4,1.4823]
[1743827770277,9.29235,1814.5,1814.4,1.4823]
[1743827770477,6.08455,1814.5,1814.4,1.4823]
[1743827770677,9.29235,1814.5,1814.4,1.4823]
[1743827772471,9.29235,1814.5,1814.3,1.81702]
[1743827772777,2.2382,1814.4,1814.3,1.81702]
[1743827773077,2.2382,1814.4,1814.3,2.58725666]
[1743827773578,2.2382,1814.4,1814.3,2.58729466]
[1743827775378,2.2382,1814.4,1814.3,2.58760769]
[1743827775975,4.58669,1814.5,1814.3,2.58760769]
[1743827776167,6.75109,1814.5,1814.4,1.4003]
[1743827777183,6.75109,1814.5,1814.4,2.17131642]
[1743827778379,4.58669,1814.5,1814.4,3.27423058]
[1743827778581,4.58669,1814.5,1814.4,2.88482058]
[1743827780481,6.72729,1814.5,1814.4,3.98753058]
[1743827780882,6.72729,1814.5,1814.4,3.9875936]
[1743827782285,6.72729,1814.5,1814.4,3.98772529]
[1743827782785,6.72729,1814.5,1814.4,3.98772891]
[1743827782981,3.24329,1814.5,1814.4,3.98772891]
[1743827784585,3.24329,1814.5,1814.4,3.98773882]
[1743827786087,3.24329,1814.5,1814.4,2.88502882]
[1743827786490,3.24329,1814.5,1814.4,2.88504493]
[1743827787387,5.00621,1814.6,1814.5,1.10265]
[1743827787788,5.00621,1814.6,1814.5,3.26495]
[1743827788491,6.42551,1814.6,1814.5,3.26495]
[1743827788682,6.42551,1814.6,1814.5,2.1623]
[1743827792494,6.42551,1814.6,1814.5,3.26495]
[1743827792790,6.42551,1814.6,1814.5,4.03647108]
[1743827792991,3.2078,1814.6,1814.5,4.03647108]
[1743827793992,0.7061,1814.7,1814.6,1.10259]
[1743827794290,1.80862,1814.7,1814.6,3.36641108]
[1743827794691,0.7061,1814.7,1814.6,3.36641108]
[1743827794991,2.1046,1814.7,1814.6,3.36641108]
[1743827795792,5.3124,1814.7,1814.6,3.36641108]
[1743827796291,5.3124,1814.7,1814.6,2.59489]
[1743827796694,6.41492,1814.7,1814.6,2.59489]
[1743827796893,6.41492,1814.7,1814.6,3.36617582]
[1743827797099,5.3124,1814.7,1814.6,2.59489]
[1743827800897,1.10271,1814.4,1814.3,3.2078]
[1743827801096,1.10271,1814.4,1814.3,0.77105324]
[1743827801291,1.10269,1814.5,1814.3,1.87382324]
[1743827801592,3.23879,1814.5,1814.3,1.10277]
[1743827801794,3.23879,1814.5,1814.3,1.79657]
[1743827802395,1.4065,1814.4,1814.3,1.79657]
[1743827802595,1.4065,1814.4,1814.3,2.56774444]
[1743827803299,1.4065,1814.4,1814.3,2.5677142]
[1743827805297,1.4065,1814.4,1814.3,2.56768749]
[1743827807002,1.4065,1814.4,1814.3,2.56764969]
[1743827807195,2.50921,1814.4,1814.3,2.56764969]
[1743827807803,2.50921,1814.4,1814.3,1.79657]
[1743827808302,2.50921,1814.4,1814.3,2.56758376]
[1743827808803,2.50921,1814.4,1814.3,1.79657]
[1743827814309,2.50921,1814.4,1814.3,0.6938]
[1743827815610,2.50921,1814.4,1814.3,1.79657]
[1743827821922,2.50921,1814.4,1814.3,0.6938]
[1743827822923,2.50921,1814.4,1814.3,2.2186]
[1743827823819,2.50921,1814.4,1814.3,3.32137]
[1743827825724,2.50921,1814.4,1814.3,2.2186]
[1743827827527,2.50921,1814.4,1814.3,1.5248]
[1743827828131,5.71701,1814.4,1814.3,1.5248]
[1743827829031,2.50921,1814.4,1814.3,1.5248]
[1743827829324,5.71701,1814.4,1814.3,1.5248]
[1743827829525,1.10289,1814.1,1814.0,0.00826811]
[1743827829731,4.31069,1814.1,1814.0,0.77869079]
[1743827830332,1.10289,1814.1,1814.0,0.77869079]
[1743827830527,6.46149,1814.1,1814.0,0.00826811]
[1743827830733,6.46149,1814.1,1814.0,0.77882602]
[1743827833435,3.2078,1814.1,1814.0,1.88177602]
[1743827833621,3.2078,1814.1,1814.0,4.09937602]
[1743827834233,3.2078,1814.1,1814.0,3.32881811]
[1743827834429,3.2078,1814.1,1814.0,4.0987876]
[1743827834934,1.10277,1814.3,1814.1,1.10284]
[1743827835135,1.10277,1814.3,1814.1,2.2386]
[1743827835328,1.10277,1814.3,1814.2,2.2191]
[1743827835529,3.26107,1814.3,1814.2,2.2191]
[1743827835735,3.26107,1814.3,1814.2,3.32193]
[1743827836338,2.1583,1814.3,1814.2,3.32193]
[1743827843144,3.2078,1814.4,1814.3,1.10277]
[1743827843335,3.2078,1814.4,1814.3,3.28367171]
[1743827843736,3.2078,1814.4,1814.3,3.2835428]
[1743827844846,4.31051,1814.4,1814.3,1.4111]
[1743827845036,4.31051,1814.4,1814.2,1.10281]
[1743827845237,2.9627,1814.3,1814.2,1.10281]
[1743827845437,2.9627,1814.3,1814.2,3.37348598]
[1743827845641,4.06547,1814.3,1814.2,1.5008]
[1743827845840,4.06547,1814.3,1814.1,2.62855]
[1743827846045,1.4604,1814.2,1814.1,4.12935]
[1743827846246,1.4604,1814.2,1814.1,4.8992635]
[1743827847738,1.4604,1814.2,1814.1,4.89931369]
[1743827849045,1.4604,1814.2,1814.1,1.87281369]
[1743827849438,1.4604,1814.2,1814.1,3.30311369]
[1743827850243,5.77103,1814.2,1814.0,1.11118811]
[1743827850438,1.82459,1814.1,1814.0,0.00826811]
[1743827850636,2.1348,1814.1,1814.0,1.11121811]
[1743827851545,2.1348,1814.1,1814.0,2.52131811]
[1743827853147,6.44549,1814.1,1814.0,2.52131811]
[1743827853336,5.3426,1814.1,1814.0,2.52131811]
[1743827853539,6.44549,1814.1,1814.0,2.52131811]
[1743827855449,5.3426,1814.1,1814.0,2.52131811]
[1743827856947,6.44549,1814.1,1814.0,2.52131811]
[1743827858446,3.23769,1814.1,1814.0,0.00826811]
[1743827871650,6.44549,1814.1,1814.0,0.00826811]
[1743827872153,3.23769,1814.1,1814.0,0.00826811]
[1743827872643,6.44549,1814.1,1814.0,0.00826811]
[1743827873355,3.23769,1814.1,1814.0,0.00826811]
[1743827873654,6.44549,1814.1,1814.0,0.00826811]
[1743827874755,3.23769,1814.1,1814.0,0.00826811]
[1743827875256,6.44549,1814.1,1814.0,0.00826811]
[1743827876352,3.23769,1814.1,1814.0,0.00826811]
[1743827876753,6.44549,1814.1,1814.0,0.00826811]
[1743827877154,3.23769,1814.1,1814.0,0.00826811]
[1743827877750,6.44549,1814.1,1814.0,0.00826811]
[1743827878460,3.23769,1814.1,1814.0,0.00826811]
[1743827878760,6.44549,1814.1,1814.0,0.00826811]
[1743827879459,6.44549,1814.1,1814.0,0.71206811]
[1743827879661,6.44549,1814.1,1814.0,2.21586811]
[1743827881164,3.23769,1814.1,1814.0,2.21586811]
[1743827881364,6.44549,1814.1,1814.0,2.21586811]
[1743827890976,6.44549,1814.1,1814.0,2.96366811]
[1743827892477,4.31069,1814.1,1814.0,2.96366811]
[1743827894181,5.75489,1814.1,1814.0,2.96366811]
[1743827897381,6.6918,1814.1,1814.0,4.06661811]
[1743827897784,4.31069,1814.1,1814.0,4.06661811]
[1743827899385,4.31069,1814.1,1814.0,2.96366811]
[1743827899780,6.52329,1814.1,1814.0,2.96366811]
[1743827901680,1.10303,1813.9,1813.5,5.96587]
[1743827901875,1.10303,1813.9,1813.6,3.56975876]
[1743827902082,1.10303,1813.9,1813.8,1.10307]
[1743827902486,1.10303,1813.9,1813.8,3.34357]
[1743827902783,1.10303,1813.9,1813.8,2.2405]
[1743827902784,1.10301,1813.9,1813.8,2.2405]
[1743827902983,5.03601,1813.9,1813.8,2.2405]
[1743827903380,6.43411,1813.9,1813.8,2.2405]
[1743827903982,9.91811,1813.9,1813.8,3.34357]
[1743827904889,9.91811,1813.9,1813.8,2.2405]
[1743827906189,6.71031,1813.9,1813.8,2.2405]
[1743827906378,9.91811,1813.9,1813.8,2.2405]
[1743827907189,1.10307,1813.8,1813.7,0.00826811]
[1743827907489,2.63967,1813.8,1813.7,1.51736811]
[1743827907690,2.63967,1813.8,1813.7,2.24446811]
[1743827909589,2.63967,1813.8,1813.7,3.34759811]
[1743827910291,2.63967,1813.8,1813.7,2.24446811]
[1743827915893,2.63967,1813.8,1813.7,3.34759811]
[1743827916096,2.63967,1813.8,1813.7,2.24446811]
[1743827918397,2.63967,1813.8,1813.7,1.51736811]
[1743827920588,2.63967,1813.8,1813.7,0.00826811]
[1743827926895,2.63967,1813.8,1813.7,1.43576811]
[1743827927093,7.79486,1813.9,1813.7,3.30932272]
[1743827927297,7.79486,1813.9,1813.8,0.7147]
[1743827927601,4.31081,1813.9,1813.8,3.94797]
[1743827927801,7.79481,1813.9,1813.8,3.94797]
[1743827928202,7.79481,1813.9,1813.8,2.8449]
[1743827930494,7.79481,1813.9,1813.8,3.61576895]
[1743827930900,7.79481,1813.9,1813.8,3.61576193]
[1743827932607,3.2078,1813.9,1813.8,4.71883193]
[1743827932897,0.00826811,1814.0,1813.9,1.10301]
[1743827933105,0.00826811,1814.0,1813.9,3.33887193]
[1743827935907,0.00826811,1814.0,1813.9,3.33778719]
[1743827936507,0.00826811,1814.0,1813.9,5.8375898]
[1743827936711,0.00826811,1814.0,1813.9,3.3375898]
[1743827945010,0.00826811,1814.0,1813.9,2.56801]
[1743827945310,0.00826811,1814.0,1813.9,3.33654858]
[1743827948918,0.00826811,1814.0,1813.9,3.33649758]
[1743827951917,0.00826811,1814.0,1813.9,3.33670757]
[1743827952615,0.00826811,1814.0,1813.9,2.56801]
[1743827952819,1.41246811,1814.0,1813.9,1.10301]
[1743827953011,2.12146811,1814.0,1813.9,1.10301]
[1743827957621,2.12146811,1814.0,1813.9,1.87294734]
[1743827957919,2.12146811,1814.0,1813.9,1.10301]
[1743827958421,2.12146811,1814.0,1813.9,1.87291044]
[1743827958611,1.41246811,1814.0,1813.9,3.39261044]
[1743827960024,1.41246811,1814.0,1813.9,3.39276035]
[1743827961922,1.41246811,1814.0,1813.9,3.39304218]
[1743827963727,1.41246811,1814.0,1813.9,3.39319009]
[1743827973032,1.41246811,1814.0,1813.9,3.39325872]
[1743827975839,0.00826811,1814.0,1813.9,3.39325872]
[1743827976737,0.00826811,1814.0,1813.9,3.39324254]
[1743827978533,0.00826811,1814.0,1813.9,2.62271]
[1743827978727,0.00826811,1814.0,1813.9,3.39321184]
[1743827981136,0.00826811,1814.0,1813.9,3.39314398]
[1743827982334,0.00826811,1814.0,1813.9,2.62271]
[1743827982539,0.00826811,1814.0,1813.9,3.39308607]
[1743827985744,0.00826811,1814.0,1813.9,3.92936655]
[1743827986044,0.00826811,1814.0,1813.9,3.92934661]
[1743827987945,0.00826811,1814.0,1813.9,3.92939742]
[1743827991648,0.00826811,1814.0,1813.9,3.9294522]
[1743827992046,0.75286811,1814.0,1813.9,2.4097522]
[1743827992242,0.75286811,1814.0,1813.9,1.87344744]
[1743827992645,2.18756811,1814.0,1813.9,1.87344744]
[1743827993552,2.18756811,1814.0,1813.9,1.87362641]
[1743827995355,2.18756811,1814.0,1813.9,1.87359963]
[1743827997259,2.18756811,1814.0,1813.9,1.87357856]
[1743827999152,2.18756811,1814.0,1813.9,1.87359281]
[1743828005862,2.18756811,1814.0,1813.9,1.10301]
[1743828006064,2.18756811,1814.0,1813.9,1.87343987]
[1743828007763,2.18756811,1814.0,1813.9,1.8734218]
[1743828008363,3.29051811,1814.0,1813.9,1.8734218]
[1743828008562,2.18756811,1814.0,1813.9,1.8734218]
[1743828011460,2.18756811,1814.0,1813.9,1.10301]
[1743828011760,2.18756811,1814.0,1813.9,1.87333876]
[1743828012266,2.18756811,1814.0,1813.9,2.61300455]
[1743828013366,2.18756811,1814.0,1813.9,2.6129392]
[1743828015158,2.18756811,1814.0,1813.9,1.84271]
[1743828015366,2.18756811,1814.0,1813.9,2.61297934]
[1743828016359,2.18756811,1814.0,1813.9,2.61305219]
[1743828017165,2.18756811,1814.0,1813.9,2.61306665]
[1743828021671,0.00826811,1814.0,1813.9,3.34296665]
[1743828022859,0.00826811,1814.0,1813.9,3.3436297]
[1743828026477,0.00826811,1814.0,1813.9,3.34355337]
[1743828030379,0.00826811,1814.0,1813.9,3.3436054]
[1743828034981,0.00826811,1814.0,1813.9,3.87988443]
[1743828035876,0.00826811,1814.0,1813.9,3.87895287]
[1743828037778,0.00826811,1814.0,1813.9,3.87861077]
[1743828038276,0.00826811,1814.0,1813.9,3.34262109]
[1743828041483,0.00826811,1814.0,1813.9,2.57261]
[1743828041986,0.00826811,1814.0,1813.9,3.34256662]
[1743828042187,0.00826811,1814.0,1813.9,2.57261]
[1743828042484,0.00826811,1814.0,1813.9,3.34256358]
[1743828043288,0.00826811,1814.0,1813.9,2.57261]
[1743828043683,0.00826811,1814.0,1813.9,3.3425419]
[1743828044281,0.00826811,1814.0,1813.9,2.57261]
[1743828044483,0.00826811,1814.0,1813.9,3.34249177]
[1743828044688,0.00826811,1814.0,1813.9,2.57261]
[1743828045188,0.00826811,1814.0,1813.9,3.34245776]
[1743828046990,0.00826811,1814.0,1813.9,3.34243583]
[1743828048789,0.00826811,1814.0,1813.9,3.34244641]
[1743828049792,0.00826811,1814.0,1813.9,4.75724641]
[1743828051298,0.00826811,1814.0,1813.9,4.75722537]
[1743828051888,0.00826811,1814.0,1813.9,4.75721393]
[1743828052493,0.00826811,1814.0,1813.9,4.7572053]
[1743828054498,0.00826811,1814.0,1813.9,4.75719721]
[1743828056304,0.00826811,1814.0,1813.9,4.75722234]
[1743828056997,0.00826811,1814.0,1813.9,5.29305069]
[1743828057600,0.00826811,1814.0,1813.9,4.75722234]
[1743828059007,0.00826811,1814.0,1813.9,5.29310096]
[1743828059811,0.00826811,1814.0,1813.9,8.50090096]
[1743828060012,0.00826811,1814.0,1813.9,8.50104259]
[1743828060513,0.00826811,1814.0,1813.9,5.29324259]
[1743828060714,0.00826811,1814.0,1813.9,8.50104259]
[1743828061218,2.2355,1814.2,1814.1,1.10289]
[1743828061417,3.2078,1814.5,1814.4,1.10271]
[1743828061617,3.481,1814.6,1814.5,1.10265]
[1743828061809,4.9493,1814.6,1814.5,4.10053456]
[1743828062012,1.4683,1814.6,1814.5,4.10053456]
[1743828063117,1.4683,1814.6,1814.5,4.10017515]
[1743828063617,1.4683,1814.6,1814.5,3.33155]
[1743828064819,1.41676811,1814.7,1814.6,1.10259]
[1743828065117,2.87496811,1814.7,1814.6,2.62739]
[1743828073725,2.87496811,1814.7,1814.6,1.10259]
[1743828075122,2.87496811,1814.7,1814.6,2.55789]
[1743828079726,35.85539,1815.0,1814.9,1.1024]
[1743828079727,3.2078,1815.0,1814.9,1.1024]
[1743828079932,5.6338,1815.1,1815.0,1.10234]
[1743828080226,8.8416,1815.1,1814.9,1.10236]
[1743828080419,2.1923,1815.0,1814.5,4.3104]
[1743828080616,2.1923,1815.0,1814.5,4.31042]
[1743828080617,1.427,1814.9,1814.5,4.31042]
[1743828080818,1.10254,1814.7,1814.5,1.10262]
[1743828081019,2.1923,1814.6,1814.5,1.11088811]
[1743828081625,0.00826811,1814.9,1814.5,3.53205831]
[1743828081830,0.00826811,1814.9,1814.8,1.10246]
[1743828082229,0.00826811,1814.9,1814.8,1.86939242]
[1743828082422,0.00826811,1814.9,1814.8,4.01479242]
[1743828083232,0.00826811,1814.9,1814.8,3.24786]
[1743828084230,0.00826811,1814.9,1814.8,4.01457798]
[1743828087232,0.00826811,1814.9,1814.8,3.24786]
[1743828087423,0.00826811,1814.9,1814.8,4.01485381]
[1743828090536,0.74386811,1814.9,1814.8,3.25465381]
[1743828090735,0.74386811,1814.9,1814.8,1.86945381]
[1743828092436,0.74386811,1814.9,1814.8,3.37335381]
[1743828094736,0.74386811,1814.9,1814.8,3.37372483]
[1743828095733,0.00826811,1814.9,1814.8,3.37372483]
[1743828098537,0.00826811,1814.9,1814.8,3.37371774]
[1743828098937,0.00826811,1814.9,1814.8,3.37370507]
[1743828100533,0.00826811,1814.9,1814.8,3.37373256]
[1743828102148,3.478,1815.3,1815.2,1.10216]
[1743828102446,3.0279,1815.3,1815.2,1.10216]
[1743828103147,3.0279,1815.3,1815.2,2.48936]
[1743828109251,3.0279,1815.3,1815.2,3.25731382]
[1743828109942,3.0279,1815.3,1815.2,3.25723848]
[1743828111754,3.0279,1815.3,1815.1,1.10223]
[1743828112056,1.4252,1815.2,1815.1,1.10223]
[1743828112246,1.4252,1815.2,1815.1,1.87057984]
[1743828113454,1.4252,1815.2,1815.1,1.10223]
[1743828114652,1.4252,1815.2,1815.1,1.87067491]
[1743828114952,1.4252,1815.2,1815.1,1.10223]
[1743828115446,1.4252,1815.2,1815.1,1.87068353]
[1743828115841,1.4252,1815.2,1815.1,1.10223]
[1743828116745,1.4252,1815.2,1815.1,1.87071367]
[1743828117152,1.4252,1815.2,1815.1,1.87071003]
[1743828117354,1.4252,1815.2,1815.1,1.87072379]
[1743828117554,1.4252,1815.2,1815.1,1.10223]
[1743828118951,1.4252,1815.2,1815.1,1.87073777]
[1743828119255,1.4252,1815.2,1815.1,1.8707232]
[1743828121057,1.4252,1815.2,1815.1,1.10223]
[1743828121551,1.4252,1815.2,1815.1,1.87076228]
[1743828122358,1.4252,1815.2,1815.1,1.87081353]
[1743828129864,1.4252,1815.2,1815.1,1.87138592]
[1743828137678,1.4252,1815.2,1815.1,2.58928592]
[1743828144787,1.4252,1815.2,1815.1,2.58987673]
[1743828148791,7.4032,1815.2,1814.8,0.7605]
[1743828148984,1.10246,1814.8,1814.6,2.0896]
[1743828149186,3.478,1814.8,1814.7,1.10251]
[1743828149386,6.4732,1814.8,1814.7,1.10251]
[1743828149591,6.4732,1814.8,1814.7,2.59351]
[1743828149786,7.57566,1814.8,1814.7,2.59351]
[1743828149991,7.57566,1814.8,1814.7,1.491]
[1743828151094,7.57566,1814.8,1814.7,2.59352]
[1743828153692,7.57566,1814.8,1814.7,1.491]
[1743828154896,6.4732,1814.8,1814.7,2.59352]
[1743828158490,7.57566,1814.8,1814.7,2.59352]
[1743828161393,7.57566,1814.8,1814.7,1.491]
[1743828162687,7.57566,1814.8,1814.7,2.59352]
[1743828164997,7.57566,1814.8,1814.6,2.56035]
[1743828165196,1.4953,1814.7,1814.6,2.56035]
[1743828166789,2.59782,1814.7,1814.6,2.56035]
[1743828166995,2.59782,1814.7,1814.5,2.50967811]
[1743828167196,1.4953,1814.6,1814.5,2.50967811]
[1743828169088,3.30859,1814.6,1814.5,2.50967811]
[1743828169295,3.30859,1814.6,1814.5,1.40706811]
[1743828170002,2.206,1814.6,1814.5,2.50971811]
[1743828170800,3.30859,1814.6,1814.5,1.40706811]
[1743828171202,2.206,1814.6,1814.5,2.50971811]
[1743828177904,2.206,1814.6,1814.5,3.27278817]
[1743828178306,2.206,1814.6,1814.5,2.50971811]
[1743828178500,2.206,1814.6,1814.5,3.27333695]
[1743828179402,1.4953,1814.6,1814.5,3.27333695]
[1743828180302,5.347,1814.8,1814.6,1.10256]
[1743828180504,6.7694,1814.8,1814.6,3.28796]
[1743828180703,7.4638,1814.8,1814.6,3.28796]
[1743828180902,7.4638,1814.8,1814.7,1.4616]
[1743828181507,1.10252,1814.7,1814.6,1.82636]
[1743828181709,2.52492,1814.7,1814.6,3.28796]
[1743828182007,5.73272,1814.7,1814.6,3.28796]
[1743828182608,5.73272,1814.7,1814.6,2.1854]
[1743828182909,5.73272,1814.7,1814.5,1.11086811]
[1743828183205,2.2006,1814.6,1814.5,1.11086811]
[1743828183406,2.2006,1814.6,1814.5,1.87456628]
[1743828183808,3.30319,1814.6,1814.5,1.87456628]
[1743828184007,3.2078,1814.7,1814.6,1.10259]
[1743828184209,3.2078,1814.7,1814.6,3.37179]
[1743828185512,6.51252,1814.7,1814.6,3.37179]
[1743828186412,5.41,1814.7,1814.6,3.37179]
[1743828187112,6.51252,1814.7,1814.6,3.37179]
[1743828187408,1.10259,1814.6,1814.5,0.00826811]
[1743828187612,2.58219,1814.6,1814.5,0.00826811]
[1743828190202,5.08219,1814.6,1814.1,1.5034]
[1743828190403,5.08219,1814.6,1814.1,1.10286]
[1743828190404,4.3106,1814.3,1814.1,1.10286]
[1743828190607,6.4372,1814.2,1814.1,1.10286]
[1743828190815,7.54003,1814.2,1814.1,0.76353836]
[1743828191014,7.54003,1814.2,1814.0,2.58803]
[1743828191015,1.10289,1814.1,1814.0,2.58803]
[1743828191315,2.63649,1814.1,1814.0,1.4851]
[1743828191514,2.63649,1814.1,1814.0,0.7621]
[1743828192715,2.63649,1814.1,1813.9,2.64663811]
[1743828192914,1.4348,1814.0,1813.9,3.38963811]
[1743828193405,2.53775,1814.0,1813.9,2.28666811]
[1743828193610,2.53775,1814.0,1813.9,0.00826811]
[1743828204119,5.74555,1814.0,1813.9,0.00826811]
[1743828216125,1.10312,1813.8,1813.6,1.85975]
[1743828216431,3.48,1813.7,1813.6,1.85975]
[1743828219232,4.58313,1813.7,1813.6,1.85975]
[1743828220928,3.48,1813.7,1813.6,1.85975]
[1743828221528,4.58313,1813.7,1813.6,1.85975]
[1743828222330,4.58313,1813.7,1813.6,2.6248006]
[1743828222531,4.58313,1813.7,1813.6,2.6248036]
[1743828224728,4.58313,1813.7,1813.6,3.3658036]
[1743828225341,3.48,1813.7,1813.6,3.3658036]
[1743828225642,3.48,1813.7,1813.6,3.36632839]
[1743828227039,4.58313,1813.7,1813.6,3.36632839]
[1743828227640,3.48,1813.7,1813.6,3.36632839]
[1743828227940,4.58313,1813.7,1813.6,3.36632839]
[1743828228135,4.58313,1813.7,1813.6,3.36633921]
[1743828228332,3.48,1813.7,1813.6,3.36633921]
[1743828228536,4.58313,1813.7,1813.6,3.36633921]
[1743828228932,3.48,1813.7,1813.6,3.36633921]
[1743828229443,4.58313,1813.7,1813.6,3.36633921]
[1743828229835,4.58313,1813.7,1813.6,4.06805407]
[1743828230140,3.48,1813.7,1813.6,4.06805407]
[1743828231844,3.48,1813.7,1813.6,4.06802315]
[1743828233851,4.31092,1813.8,1813.7,1.10313]
[1743828234045,7.79092,1813.8,1813.7,2.56053]
[1743828234650,7.79092,1813.8,1813.7,3.26224486]
[1743828236253,6.6878,1813.8,1813.7,3.26224486]
[1743828237946,3.48,1813.8,1813.7,3.26224486]
[1743828238450,7.79087,1813.8,1813.7,3.26224486]
[1743828240055,7.79087,1813.8,1813.7,2.15911486]
[1743828241757,9.24837,1813.8,1813.7,2.15911486]
[1743828243259,6.04057,1813.8,1813.7,2.15911486]
[1743828243449,9.24837,1813.8,1813.7,2.15911486]
[1743828245060,9.24837,1813.8,1813.7,3.26224486]
[1743828247963,9.24837,1813.8,1813.7,2.15911486]
[1743828251268,9.24837,1813.8,1813.7,0.70171486]
[1743828256768,1.10319,1813.6,1813.5,2.58618811]
[1743828257064,1.10319,1813.6,1813.5,3.35136539]
[1743828257464,2.62309,1813.6,1813.5,4.05260808]
[1743828259165,2.62309,1813.6,1813.5,3.2874308]
[1743828259467,1.5199,1813.6,1813.5,4.05244754]
[1743828260966,2.62309,1813.6,1813.5,4.05244754]
[1743828261670,1.5199,1813.6,1813.5,4.05244754]
[1743828264471,2.62309,1813.6,1813.5,4.05244754]
[1743828264772,2.62309,1813.6,1813.5,4.05265145]
[1743828265571,2.62309,1813.6,1813.5,2.94943145]
[1743828265763,3.34129,1813.6,1813.5,2.94943145]
[1743828266874,3.34129,1813.6,1813.5,2.94943456]
[1743828267373,6.54909,1813.6,1813.5,0.7095108]
[1743828268774,6.54909,1813.6,1813.5,2.2234108]
[1743828279481,3.34129,1813.6,1813.5,2.2234108]
[1743828282082,3.34129,1813.6,1813.5,0.7095108]
[1743828283589,3.34129,1813.6,1813.1,0.7317]
[1743828283590,1.10344,1813.2,1813.1,0.7317]
[1743828283790,4.31124,1813.2,1813.1,4.0582141]
[1743828283996,3.2078,1813.2,1813.1,4.0582141]
[1743828284294,4.31124,1813.2,1813.1,2.2230141]
[1743828284689,2.57294,1813.2,1813.1,2.9682141]
[1743828285296,5.78074,1813.2,1813.1,2.203]
[1743828289191,2.57294,1813.2,1813.1,2.203]
[1743828289391,5.78074,1813.2,1813.1,2.203]
[1743828291998,1.1035,1813.1,1813.0,0.71856811]
[1743828292296,3.2454,1813.1,1813.0,1.82212811]
[1743828292699,3.2454,1813.1,1813.0,3.31062811]
[1743828295703,3.2454,1813.1,1813.0,4.0075196]
[1743828296899,3.2454,1813.1,1813.0,2.1936596]
[1743828297196,3.2454,1813.1,1813.0,1.49676811]
[1743828297992,5.7454,1813.1,1813.0,0.00826811]
[1743828298596,5.84537755,1813.1,1813.0,0.00826811]
[1743828299602,9.32537755,1813.1,1813.0,0.00826811]
[1743828299894,6.82537755,1813.1,1813.0,0.00826811]
[1743828301002,9.32537855,1813.1,1813.0,0.00826811]
[1743828301198,6.82537855,1813.1,1813.0,0.00826811]
[1743828301401,9.32537855,1813.1,1813.0,8.11e-06]
[1743828301605,9.32537855,1813.1,1812.1,3.2078]
[1743828301606,1.10386,1812.5,1812.4,1.5307]
[1743828301808,4.58386,1812.5,1812.4,1.5307]
[1743828302198,6.73276,1812.5,1812.4,1.5307]
[1743828304607,1.10392,1812.4,1812.3,0.00551206]
[1743828304807,1.10392,1812.4,1812.3,1.50361206]
[1743828304808,5.83522,1812.4,1812.3,1.50361206]
[1743828305007,6.53432,1812.4,1812.3,0.00551206]
[1743828310206,3.2078,1812.4,1812.3,1.10949206]
[1743828310406,6.6888,1812.4,1812.3,1.10949206]
[1743828312405,3.2078,1812.4,1812.3,1.10949206]
[1743828314316,4.31172,1812.4,1812.3,0.00551206]
[1743828314609,4.31172,1812.4,1812.3,2.17541206]
[1743828314809,4.31172,1812.4,1812.3,2.87111206]
[1743828315512,3.2078,1812.4,1812.3,3.97509206]
[1743828316107,4.31172,1812.4,1812.3,2.87111206]
[1743828316713,3.2078,1812.4,1812.3,3.97509206]
[1743828317110,4.31172,1812.4,1812.3,3.97509206]
[1743828318515,4.31172,1812.4,1812.3,2.87111206]
[1743828319515,5.77772,1812.4,1812.3,2.87111206]
[1743828320211,5.77772,1812.4,1812.3,2.17181206]
[1743828320410,5.77772,1812.4,1812.3,0.00551206]
[1743828321417,2.56992,1812.4,1812.3,0.00551206]
[1743828321605,5.77772,1812.4,1812.3,0.00551206]
[1743828326219,5.77772,1812.4,1812.3,1.49351206]
[1743828327215,3.2078,1812.4,1812.3,2.59749206]
[1743828327417,3.481,1812.4,1812.3,4.06528838]
[1743828327621,4.58492,1812.4,1812.3,2.96130838]
[1743828327918,7.79272,1812.4,1812.3,2.96130838]
[1743828328313,9.31212,1812.4,1812.3,2.96130838]